Cogmind - Beta 16 *** ADVENTURER MODE // 2025.10.29 @ 17:57:56 Player: Vidali Result: Destroyed by D-53 Grenadier with Mini Grenade Launcher Performance ------------- Evolutions (0) 0 Regions Visited (2) 400 Robots Destroyed (17) 85 Value Destroyed (532) 532 Prototype IDs (5) 100 Alien Tech Used (0) 0 Bonus (0) 0 TOTAL SCORE: 1117 Bonus ------- None Cogmind --------- Core Integrity 0/250 Matter 300/300 Energy 99/100 System Corruption 0% Temperature Cool (0) Movement Core (50) Location -10/Mines Parts ------- > --- POWER (1) -------- (None) > --- PROPULSION (2) --- (None) > --- UTILITY (2) ------ Targeting Computer > --- WEAPON (2) ------- (None) > --- INVENTORY (5) ---- Hardened Light Armor Plating Hardened Light Armor Plating Heavy Assault Rifle Heavy Assault Rifle Peak State ------------ > --- POWER ------------ Light Nuclear Core > --- PROPULSION ------- Aluminum Leg Aluminum Leg > --- UTILITY ---------- Small Storage Unit Targeting Computer > --- WEAPON ----------- Heavy Assault Rifle Heavy Assault Rifle > --- INVENTORY -------- Hardened Light Armor Plating Hardened Light Armor Plating Hardened Light Armor Plating Heavy Assault Rifle Heavy Assault Rifle [Rating: 12] Favorites ----------- Power Light Ion Engine Engine Light Ion Engine Power Core Light Nuclear Core Propulsion Aluminum Leg Leg Aluminum Leg Utility Small Storage Unit Storage Small Storage Unit Processor Targeting Computer Weapon Heavy Assault Rifle Ballistic Gun Heavy Assault Rifle Build | -11 -10 -10 ------- Run | Yrd Mat Min Slots Evolved . | . . . Power . | . . . Propulsion . | . . . Utility . | . . . Weapon . | . . . Parts Attached 10 | 6 4 . Power 2 | 1 1 . Engine 1 | 1 . . Core 1 | . 1 . Reactor . | . . . Propulsion 2 | 2 . . Treads . | . . . Leg 2 | 2 . . Wheel . | . . . Hover . | . . . Flight . | . . . Utility 2 | 1 1 . Device . | . . . Storage 1 | 1 . . Processor 1 | . 1 . Hackware . | . . . Protection . | . . . Artifact . | . . . Weapon 4 | 2 2 . Energy Gun . | . . . Energy Cannon . | . . . Ballistic Gun 4 | 2 2 . Ballistic Cannon . | . . . Launcher . | . . . Special Weapon . | . . . Impact Weapon . | . . . Slashing Weapon . | . . . Piercing Weapon . | . . . Special Melee Weapon . | . . . Unidentified Prototypes . | . . . Parts Lost 5 | . . 5 Power 1 | . . 1 Propulsion 2 | . . 2 Utility . | . . . Weapon 2 | . . 2 Highest Loss Streak 5 | . . 5 To Critical Strikes . | . . . Average Backups 2 | . 1 4 Power . | . . . Propulsion . | . . . Utility . | . . 2 Weapon 1 | . 1 2 Tool/Special . | . . . Unused Backups 4 | . . 4 Power . | . . . Propulsion . | . . . Utility 2 | . . 2 Weapon 2 | . . 2 Tool/Special . | . . . Average Slot Usage (%) 74 | . 92 35 Engine 8 | . 12 . Core 1 | . 1 2 Leg 21 | . 28 7 Storage 10 | . 14 3 Processor 8 | . 6 14 Ballistic Gun 21 | . 28 7 Peak Build Rating 12 | 6 12 12 Average Rating 6 | 4 8 3 On Entrance 6 | . 6 12 Avg Prop Armor Cover (%) . | . . . Naked Turns . | . . . Heaviest Build 16 | 10 16 16 Greatest Support 20 | 20 20 20 Greatest Overweight (x) 1 | . . 1 Average Overweight (x) . | . . . Largest Inventory Capacity 8 | 8 8 8 Average Capacity 7 | 6 8 5 Most Carried 6 | 2 6 6 Average Carried 2 | . 1 4 Final Capacity 8 | 8 8 5 Final Carried 6 | . 6 4 Class Distribution -------------------- 100% | Mutant Dominant Class ---------------- Mutant | -10/Materials Mutant | -10/Mines Resources | -11 -10 -10 ----------- Run | Yrd Mat Min Matter Collected 510 | 182 306 22 Remotely . | . . . Salvage Created 606 | . 560 46 Parts 39 | . 36 3 Haulers Intercepted . | . . . Recyclers Shooed . | . . . Parts Field Recycled . | . . . Retrieved Matter . | . . . Parts Self-Destructed . | . . . Prevented . | . . . Parts Restored . | . . . Kills | -11 -10 -10 ------- Run | Yrd Mat Min Combat Hostiles Destroyed 18 | . 16 2 Guns 18 | . 16 2 Classes Destroyed 3 | . 2 1 Swarmer 3 | . 3 . Grunt 14 | . 13 1 Assembled 1 | . . 1 Best Kill Streak 5 | . 5 1 Combat Bots Only 5 | . 5 1 Max Kills in Single Turn 1 | . 1 1 Gunslinging . | . . . Exploded . | . . . Melee . | . . . Uniques/NPCs Destroyed . | . . . Combat | -11 -10 -10 -------- Run | Yrd Mat Min Hostile Shots Fired 84 | . 56 28 Missed 28 | . 22 6 Hits 56 | . 34 22 Projectile 56 | . 34 22 AOE 12 | . . 12 Critical Strikes 1 | . 1 . Damage Taken 756 | . 310 446 Core 261 | . 37 224 Absorbed by Shields . | . . . Ignored by Resistances 222 | . 99 123 Core Remaining (%) 100 | 100 . . Volleys Fired 43 | . 39 4 Largest 2 | . 2 2 Hottest 46 | . 46 46 Shots Fired 86 | . 78 8 Gun 86 | . 78 8 Cannon . | . . . Launcher . | . . . Special . | . . . Kinetic 86 | . 78 8 Thermal . | . . . Explosive . | . . . Electromagnetic . | . . . Robot Hit Streak 19 | . 19 13 Robot Miss Streak 3 | . 3 2 Penetration Max . | . . . Secondary Targets 3 | . 3 . Max Gunslinging Chain 1 | . 1 . Shots Hit Robots 64 | . 59 5 Core Hits 29 | . 25 4 Critical Kills . | . . . Critical Parts Destroyed . | . . . Critical Strikes . | . . . Melee Attacks . | . . . Impact . | . . . Slashing . | . . . Piercing . | . . . Sneak Attacks . | . . . Combat Hostiles . | . . . Follow-up Attacks . | . . . Damage Inflicted 949 | . 859 90 Guns 933 | . 859 74 Cannons . | . . . Explosions . | . . . Melee . | . . . Ramming 16 | . . 16 Kinetic 933 | . 859 74 Thermal . | . . . Explosive . | . . . Electromagnetic . | . . . Impact . | . . . Slashing . | . . . Piercing . | . . . Highest Corruption . | . . . Average Corruption . | . . . Corruption Purged . | . . . Corruption Blocked . | . . . Overload Shots . | . . . Overflow Damage . | . . . Projectiles . | . . . Explosions . | . . . Melee . | . . . Knockbacks . | . . . Impact . | . . . Kinetic . | . . . Secondary . | . . . Self-Inflicted Damage 5 | . . 5 Shots . | . . . Rammed 2 | . . 2 Targets Rammed 3 | . . 3 Kicked 1 | . . 1 Crushed . | . . . Highest Temperature 64 | . 64 10 Average Temperature 23 | . 25 6 Received Heat Transfer 330 | . 228 102 Siege Activations . | . . . Martial Activations . | . . . Shielding Activations . | . . . Robots Disrupted . | . . . Combat Hostiles . | . . . Robots Corrupted . | . . . Combat Hostiles . | . . . Parts Fried . | . . . Impact Corruptions . | . . . Robots Melted . | . . . Combat Hostiles . | . . . Parts Melted . | . . . Heat Transferred . | . . . Parts Sabotaged . | . . . Parts Stolen . | . . . Parts Stripped . | . . . Power Chain Reactions . | . . . Alert | -11 -10 -10 ------- Run | Yrd Mat Min Maximum Alert Level 1 | . 1 . Low Security (%) 99 | 100 99 100 Level 1 . | . . . Level 2 . | . . . Level 3 . | . . . Level 4 . | . . . Level 5 . | . . . High Security . | . . . Max Security . | . . . Peak Influence 198 | . 198 55 Initial 45 | . . 45 Average 62 | . 85 20 Influence Increases 598 | . 473 125 Destroy 0b10 Robot/C 340 | . 320 20 Destroy Leader 60 | . 60 . Successful Hack 17 | . 17 . Select Force Hacks 60 | . 60 . Destroy Structure 1 | . 1 . Partial Spotted 30 | . . 30 Lose Combat Pursuer 90 | . 15 75 Influence Decreases 593 | . 335 258 Entered New Map 93 | . . 93 Time Decay 455 | . 335 120 Lost Part 5 | . . 5 Lost Ally 40 | . . 40 Squads Dispatched 5 | . 5 . Investigation 5 | . 5 . Extermination . | . . . Reinforcement . | . . . Assault . | . . . Garrison . | . . . Intercept . | . . . Searches Triggered . | . . . Construction Impeded . | . . . Haulers Reinforced . | . . . Active Scanning Responses . | . . . Cargo Convoy Interrupts . | . . . Stealth | -11 -10 -10 --------- Run | Yrd Mat Min Distress Signals 3 | . 3 . Communications Jammed . | . . . Distress Signals . | . . . Times Spotted 46 | . 23 23 Peak Tracking Total 18 | . 6 18 Tactical Retreats 5 | . 1 4 Traps | -11 -10 -10 ------- Run | Yrd Mat Min Traps Triggered 2 | . 2 . Indirectly . | . . . Trap Hack Attempts . | . . . Triggered . | . . . Disarmed . | . . . Reprogrammed . | . . . Reused . | . . . Traps Extracted . | . . . Installed . | . . . Triggered . | . . . Machines | -11 -10 -10 ---------- Run | Yrd Mat Min Machines Disabled . | . . . Max in Single Turn . | . . . Machines Repaired . | . . . Machines Dismantled . | . . . Machines Sabotaged . | . . . Overloaded Fab Kills . | . . . Hacking | -11 -10 -10 --------- Run | Yrd Mat Min Machines Accessed 7 | . 7 . Terminals 5 | . 5 . Fabricators . | . . . Repair Stations . | . . . Recycling Units 2 | . 2 . Scanalyzers . | . . . Garrison Access . | . . . Total Hacks 15 | . 15 . Successful 7 | . 7 . Failed 8 | . 8 . Catastrophic 1 | . 1 . Database Lockouts . | . . . Manual 5 | . 5 . Terminals 13 | . 13 . Fabricators . | . . . Repair Stations . | . . . Recycling Units 2 | . 2 . Scanalyzers . | . . . Garrison Access . | . . . Terminal Hacks 5 | . 5 . Robot Analysis 1 | . 1 . Prototype ID Bank 2 | . 2 . Locate Traps 1 | . 1 . Zone Layout 1 | . 1 . Fabricator Hacks . | . . . Repair Station Hacks . | . . . Recycling Unit Hacks . | . . . Scanalyzer . | . . . Garrison Access Hacks . | . . . Unauthorized Hacks 2 | . 2 . Terminals . | . . . Fabricators . | . . . Repair Stations . | . . . Recycling Units 2 | . 2 . Tunnel 2 | . 2 . Scanalyzers . | . . . Garrison Access . | . . . Data Cores Recovered . | . . . Used . | . . . Hacking Detections 4 | . 4 . Full Trace Events 1 | . 1 . Feedback Events . | . . . Feedback Blocked . | . . . Robot Schematics Acquired . | . . . Robots Built . | . . . Authchips . | . . . Time . | . . . Total Robot Build Rating . | . . . Part Schematics Acquired . | . . . Parts Built . | . . . Authchips . | . . . Time . | . . . Total Part Build Rating . | . . . Part Studies Acquired . | . . . Parts Repaired . | . . . Time . | . . . Parts Recycled . | . . . Recycled Matter . | . . . Retrieved Matter . | . . . Retrieved Components . | . . . Parts Scanalyzed . | . . . Part Schematics Acquired . | . . . Parts Damaged . | . . . Bothacking | -11 -10 -10 ------------ Run | Yrd Mat Min Used RIF Installer . | . . . Robots Hacked . | . . . Non-combat . | . . . Combat . | . . . Robot Hacks Applied . | . . . Relay Couplers Released . | . . . Fabnet Peak Effective % . | . . . Robots Rewired . | . . . Allies Hacked . | . . . Hacks Repelled . | . . . Allies | -11 -10 -10 -------- Run | Yrd Mat Min Total Allies 3 | . . 3 Largest Group 3 | . . 3 Highest-Rated Group 40 | . . 40 Highest-Rated Ally 16 | . . 16 Total Orders . | . . . Ally Attacks 2 | . . 2 Total Damage 16 | . . 16 Kills . | . . . Allies Corrupted . | . . . Allies Melted . | . . . Intel | -11 -10 -10 ------- Run | Yrd Mat Min Active Infowar (turns) . | . . . Robot Analysis Total 1 | . 1 . Derelict Logs Recovered . | . . . Drone Launches . | . . . Drone Recoveries . | . . . Exploration | -11 -10 -10 ------------- Run | Yrd Mat Min Turns Passed 1100 | 56 724 320 Spaces Moved 897 | 42 455 400 Core 349 | 8 . 341 Treads . | . . . Legs 548 | 34 455 59 Wheels . | . . . Hover . | . . . Flight . | . . . Fastest Speed 50 | 50 120 50 Average Speed 92 | 106 120 60 Slowest Speed 120 | 120 120 120 Overloaded Moves . | . . . Propulsion Burnouts . | . . . Robots Hopped . | . . . Potential Cave-ins . | . . . Cave-ins Triggered . | . . . Exploration Rate (%) 52 | 3 94 60 Regions Visited 2 Branch Regions 1 Pre-discovered Areas 2 | . 2 . Known Exits Taken . | . . . Unknown Exits Taken 2 | 1 1 . Scrap Searched 1 | . . 1 Spaces Dug . | . . . Terrain Destroyed . | . . . Melee . | . . . Projectile . | . . . AOE . | . . . Terrain Rammed . | . . . Walls Destroyed . | . . . Machines Disabled . | . . . Actions | -11 -10 -10 --------- Run | Yrd Mat Min Total 1082 | 53 558 471 Wait 110 | . 49 61 Move 895 | 41 454 400 Hop . | . . . Pick Up 15 | 6 9 . Fast Attach . | . . . Attach 7 | 6 1 . Detach . | . . . Swap 3 | . 3 . Drop 6 | . 3 3 Fire 43 | . 39 4 Melee . | . . . Ram 2 | . . 2 Kick 1 | . . 1 Crush . | . . . Escape Stasis . | . . . Rewire . | . . . Trap . | . . . Miscellaneous . | . . . Route ------- -11/Scrapyard -10/Materials (discovered 4 exits: [*Mat x3] / [*Min]) -10/Mines History --------- Turn | Location | Event 33 | -11/Scrapyard | Discovered new exit (range 15) 57 | -11/Scrapyard | Entered Materials 180 | -10/Materials | Discovered new exit (range 10) 232 | -10/Materials | Discovered new exit (range 7) 305 | -10/Materials | Build established: Mutant 569 | -10/Materials | Discovered new exit (range 16) 765 | -10/Materials | Discovered new exit (range 12) 781 | -10/Materials | Entered Mines 782 | -10/Mines | Assembled infested the area 787 | -10/Mines | Assisted by a Guerilla fighting off Assembled 826 | -10/Mines | Assisted by bots powering up and referring to "LRC-V3" 868 | -10/Mines | Core integrity fell below 50% 871 | -10/Mines | Core integrity fell below 20% 873 | -10/Mines | Lost 4 allies 897 | -10/Mines | Lost 5 parts (1p2n2w) 1101 | -10/Mines | Destroyed by D-53 Grenadier with Mini Grenade Launcher Last Messages --------------- 00859_ Hvy. Assault Rifle destroyed. 00861_ The unstable cave ceiling collapses. 00861_ Hvy. Assault Rifle destroyed. 00864_ The unstable cave ceiling collapses. 00866_ Aluminum Leg destroyed. 00867_ The unstable cave ceiling collapses. 00867_ Dropped Hrd. Light Armor Plating. 00868_ The unstable cave ceiling collapses. 00868_ Dropped Hrd. Light Armor Plating. 00869_ Dropped Sml. Storage Unit. 00871_ The unstable cave ceiling collapses. 00893_ T-07 Excavator is excavating. 00914_ K-01 Serf collects debris. 00987_ T-07 Excavator is excavating. 01021_ A derelict is hurriedly installing traps. 01021_ Slammed into T-07 Excavator. 01023_ 81-EOT(g): "Hehe, this'll put a wrench in their mining defense operations..." 01023_ 81-EOT(g) slips into the shadows. 01100_ Slammed into D-53 Grenadier. Map ----- +----------------------------------------------------+ | ???????# #?# #?????????# ? | | ???????## ################# #?# #????????# ? | | ????????# ##???????????????# #?# #???????? ?? | | ???????# ##????????????????# ### #???????? #?? | | ???????# #?????????????????# #???????? #?? | | ???????## ##???????########### #####???????? #?? | | ????????###?????????# #????????### #?? | | ????????????????????# ########## #????????# #?? | | ????????????????????# #????????# #????????# #?? | | ????????????????????# ##???????# ########## #???? | | ??????????????????### ##??????# #???? | | ?????????????????## #??????### ######## ##??? | | ????????????????## ##????????# #??????# ##?? | | ????????????????# ##?######### #??????# #?? | | ????????????????# ##??# #??????## ##?? | | ????????????????# #???# #########??????## #??? | | ????????????????######???# ###???????????## #??? | | ????????????########????## ##??????????# #??? | | ????????????# ^ #????# #?????????## ### | | ????????????# #% ##?### #????????## | | ????????????# # ### #???????## | | ????????????#^ ^ # ## r ##?????### ### | | ????????????# ## ^ ##?????## ##??# | | ????????????# ^ % #####???# ##????$ | | ????????????### ! #???## ######????? | | ??????????????# @ #????# #?????????? | | ??????????????# d%## #????# #########?? | | ??????????????## ### ?# ## # ### | | ???????????????## ## ## | | ????????????????## ##????# u | | ????????????????## ##???# ! | | ???????????????## ## #???###### !! | | ??????????????## #### #???????# | | ?????????????## ##??## ##???????## # | | ?????????????# #????#####?????????## # | | ?????????????# ##???????????????????## | | ?????????????## ##?????????????????????### | | ??????????????####???????????????????????# # | | ?????????????????????????????????????????# | | ?????????????????????????????????????????## | | ??????????????????????????????????????????# # | | ??????????????????????????????????????????## ##### | | ?????????????????????????????????????#####?# #???? | | ?????????????????????????????????????#! ###%#???? | | ?????????????????????????????????????# [| ####? | | ?????????????????????????????????????# * #? | | ????????????????????????????????# ####[% % | | ????????????????????????????????#"%" = | | ????????????????????????????????# " % | | ????????????????????????????????##### | +----------------------------------------------------+ Best States ------------- Heat Dissipation 25 Energy Generation 14 Energy Capacity 160 Matter Stores 300 Matter Capacity 300 Sight Range 16 Terrain Scan Density 10 Resistance: KI 20 Resistance: TH 20 Resistance: EX 20 Resistance: EM 20 Resistance: I 20 Resistance: S 20 Resistance: P 20 Evasion (%) 55 Targeting Accuracy 5 Offensive Hacking 10 Item Schematics ----------------- None Robot Schematics ------------------ None Fabricated ------------ Nothing Repaired ---------- Nothing Studied --------- None Alien Tech Used ----------------- None Achievements -------------- None Challenges ------------ None Game ------ Seed WardroneMediumAutopenetrator Manual? 0 Play Time 00:11:37 Cumulative 269.3 hours Start 2025.10.29 @ 17:46:52 End 2025.10.29 @ 17:57:56 Sessions 1 Manual Loads 0 Difficulty Adventurer Special Mode None Game No. 160 Rogue 94 Adventurer 66 Explorer 0 Win Type - Total 13 Types 10/0/0/3/0/0/0/0/0/0 Lore% 68 Gallery% 67 Achievement% 37 Wizard Run 0 Options --------- Layout 2 ASCII 0 Keyboard 0 Movement Mouse Keybinds 0 Fullscreen 1 Font 32/SmallcapsGlow Map View 50x44 Zoom Use 0% Tactical HUD 1 Map Filters NONE Filters NONE Steam 1 RUN: ea80a13c-9394-4307-bb94-9a92e81090d9